fUST/lending_fUST_20240119
["ID","MTS","AMOUNT","RATE_DAILY","PERIOD"]
[312111348,1705636242544,-500.0,0.00033972,3]
[312111349,1705636242553,-500.0,0.00033972,3]
[312111350,1705636242563,-500.0,0.00033972,3]
[312111351,1705636242573,-506.95,0.00033972,3]
[312111352,1705636242583,-500.0,0.00033972,3]
[312111353,1705636242593,-500.0,0.00033972,3]
[312111354,1705636242607,-2368.93,0.00033972,3]
[312111355,1705636242616,-608.26,0.00033972,3]
[312111356,1705636242626,-2269.17,0.00033972,3]
[312111357,1705636242635,-748.6,0.00033972,3]
[312111359,1705636242646,-1234.29,0.00033972,3]
[312111361,1705636242655,-151.32984646,0.00034056,2]
[312111362,1705636242665,-592.0,0.00034116,30]
[312111364,1705636242675,-592.0,0.00034126,30]
[312111366,1705636242684,-592.0,0.00034136,30]
[312111367,1705636242695,-500.0,0.00034144,2]
[312111368,1705636242704,-500.0,0.00034144,2]
[312111369,1705636242714,-500.0,0.00034144,2]
[312111370,1705636242724,-500.0,0.00034144,2]
[312111371,1705636242733,-500.0,0.00034144,2]
[312111372,1705636242744,-500.0,0.00034144,2]
[312111373,1705636242754,-500.0,0.00034144,2]
[312111374,1705636242763,-500.0,0.00034144,2]
[312111375,1705636242773,-280.13339056,0.00034144,2]
[312111377,1705636242783,-500.0,0.00034144,2]
[312111378,1705636242793,-500.0,0.00034144,2]
[312111380,1705636242801,-165.10890484,0.00034144,2]
[312111381,1705636242811,-500.0,0.00034144,2]
[312111383,1705636242821,-500.0,0.00034144,2]
[312111384,1705636242830,-164.20816128,0.00034144,2]
[312111386,1705636242840,-604.41589688,0.00034144,2]
[312111388,1705636242849,-500.0,0.00034144,2]
[312111390,1705636242859,-500.0,0.00034144,2]
[312111392,1705636242868,-500.0,0.00034144,2]
[312111394,1705636242878,-293.52592734,0.00034144,2]
[312111395,1705636242886,-500.0,0.00034144,2]
[312111397,1705636242897,-500.0,0.00034144,2]
[312111398,1705636242906,-500.0,0.00034144,2]
[312111399,1705636242916,-500.0,0.00034144,2]
[312111400,1705636242925,-500.0,0.00034144,2]
[312111402,1705636242934,-500.0,0.00034144,2]
[312111404,1705636242944,-500.0,0.00034144,2]
[312111406,1705636242953,-500.0,0.00034144,2]
[312111407,1705636242962,-500.0,0.00034144,2]
[312111409,1705636242971,-413.89241138,0.00034144,2]
[312111411,1705636242981,-500.0,0.00034144,2]
[312111412,1705636242991,-500.0,0.00034144,2]
[312111415,1705636243001,-500.0,0.00034144,2]
[312111418,1705636243011,-293.18249961,0.00034144,2]
[312111421,1705636243021,-500.0,0.00034144,2]
[312111423,1705636243031,-500.0,0.00034144,2]
[312111425,1705636243040,-500.0,0.00034144,2]
[312111427,1705636243049,-500.0,0.00034144,2]
[312111429,1705636243059,-500.0,0.00034144,2]
[312111431,1705636243068,-500.0,0.00034144,2]
[312111433,1705636243078,-500.0,0.00034144,2]
[312111435,1705636243087,-500.0,0.00034144,2]
[312111437,1705636243097,-500.0,0.00034144,2]
[312111439,1705636243106,-698.52,0.00034145,2]
[312111441,1705636243116,-698.52,0.00034145,2]
[312111443,1705636243126,-698.52,0.00034145,2]
[312111445,1705636243135,-698.52,0.00034145,2]
[312111447,1705636243145,-698.52,0.00034145,2]
[312111449,1705636243154,-698.52,0.00034145,2]
[312111450,1705636243164,-698.52,0.00034145,2]
[312111452,1705636243174,-698.52,0.00034145,2]
[312111454,1705636243183,-124232.71158335,0.00034146,2]
[312111455,1705636243211,-489.0,0.00034146,2]
[312111466,1705636243329,-500.0,0.00034144,2]
[312111468,1705636243339,-54330.36392012,0.00034146,2]
[312111643,1705636991376,-503.401971,0.00035616,120]
[312111644,1705636991400,-500.0,0.0003626,120]
[312111645,1705636991420,-500.0,0.0003626,120]
[312111646,1705636991440,-500.0,0.0003626,120]
[312111647,1705636991460,-644.93,0.0003626,120]
[312111648,1705636991480,-500.0,0.0003626,120]
[312111649,1705636991499,-500.0,0.0003626,120]
[312111650,1705636991517,-500.0,0.0003626,120]
[312111651,1705636991536,-500.0,0.0003626,120]
[312111652,1705636991558,-500.0,0.0003626,120]
[312111653,1705636991579,-500.0,0.0003626,120]
[312111654,1705636991599,-580.44,0.0003626,120]
[312111655,1705636991619,-496.598029,0.0003626,120]
[312111656,1705636991676,-3.401971,0.0003626,120]
[312111657,1705636991695,-500.0,0.0003626,120]
[312111658,1705636991719,-1487.6324601,0.00037,120]
[312111659,1705636991752,-199.8,0.00039999,120]
[312111660,1705636991777,-10892.9611378,0.0004,120]
[312111666,1705637078340,199.8,0.00035616,120]
[312111667,1705637078362,177.751478,0.00035616,120]
[312111672,1705637346114,-166.10882689,0.00026628,2]
[312111673,1705637346134,-3971.58661394,0.00027473,7]
[312111674,1705637346154,-646.929453,0.00027474,2]
[312111675,1705637346174,-182.483225,0.00027636,2]
[312111676,1705637346194,-154.9690062,0.00028032,2]
[312111677,1705637346214,-4959.16437663,0.00028039,2]
[312111678,1705637346233,-250.0,0.00028046,2]
[312111679,1705637346252,-2999.72502391,0.00028046,2]
[312111680,1705637348112,-1034.02383099,0.00028046,2]
[312111681,1705637348136,-323.24639086,0.000288,2]
[312111682,1705637348167,-860.32062192,0.000288,2]
[312111683,1705637348188,-16877.34746611,0.00029439,2]
[312111684,1705637349212,-375.16526378,0.00029487,2]
[312111685,1705637349234,-240.04264755,0.00029496,2]
[312111686,1705637352120,-19060.79918765,0.00027634,2]
[312111688,1705637360158,-5839.20081235,0.00027634,2]
[312111689,1705637360187,-2033.63508169,0.00027966,2]
[312111737,1705637433076,-39.73714341,0.00027966,2]
[312111738,1705637433086,-57.43227175,0.00029496,2]
[312111739,1705637433095,-212.83523498,0.00029999,7]
[312111780,1705637438707,-2418.66496132,0.00029999,7]
[312111781,1705637438718,-500.00248264,0.0003,3]
[312111782,1705637438818,-234.07936639,0.0003,3]
[312111783,1705637438828,-685.83526413,0.00032046,2]
[312111784,1705637438837,-155.0,0.00032324,2]
[312111785,1705637438846,-155.0,0.00032324,2]
[312111786,1705637438855,-160.80795767,0.00032768,7]
[312111787,1705637438865,-496.01775203,0.00032866,3]
[312111788,1705637438877,-4023.82224797,0.00032866,3]
[312111789,1705637438886,-398.19377489,0.00032874,4]
[312111790,1705637438895,-155.26982629,0.00032875,4]
[312111791,1705637438904,-1581.11940922,0.00032875,4]
[312111792,1705637438913,-500.0,0.00032876,2]
[312111793,1705637438923,-569.15,0.00032876,2]
[312111794,1705637438932,-259.69370052,0.00032876,2]
[312111799,1705637441458,-240.30629948,0.00032876,2]
[312111800,1705637441468,-502.53563674,0.00032876,2]
[312111801,1705637441478,-169.15710846,0.00032876,2]
[312111802,1705637441490,-261.546,0.00032876,2]
[312111803,1705637441675,-69.29689154,0.00032876,2]
[312111804,1705637441685,-501.14968167,0.00032876,2]
[312111805,1705637441694,-500.0,0.00032876,2]
[312111806,1705637441704,-500.0,0.00032876,2]
[312111807,1705637441713,-246.68423589,0.00032876,2]
[312111808,1705637441725,-259.94706534,0.00032876,2]
[312111809,1705637441734,-500.0,0.00032876,2]
[312111810,1705637441744,-11.58693396,0.00032876,2]
[312111811,1705637441756,-491.20866616,0.00032876,2]
[312111812,1705637441766,-226.07304501,0.00032876,2]
[312111813,1705637441775,-500.0,0.00032876,2]
[312111814,1705637441784,-500.0,0.00032876,2]
[312111815,1705637441795,-443.16856451,0.00032876,2]
[312111816,1705637441804,-500.0,0.00032876,2]
[312111817,1705637441814,-497.47388427,0.00032876,2]
[312111818,1705637441825,-500.0,0.00032876,2]
[312111819,1705637441834,-500.0,0.00032876,2]
[312111820,1705637441843,-500.0,0.00032876,2]
[312111821,1705637441853,-500.0,0.00032876,2]
[312111822,1705637441863,-500.0,0.00032876,2]
[312111823,1705637441872,-500.0,0.00032876,2]
[312111824,1705637441881,-296.52955403,0.00032876,2]
[312111825,1705637441890,-500.0,0.00032876,2]
[312111826,1705637441899,-500.0,0.00032876,2]
[312111827,1705637441908,-505.54813419,0.00032876,2]
[312111828,1705637441916,-500.0,0.00032876,2]
[312111829,1705637441925,-501.30538704,0.00032876,2]
[312111830,1705637441934,-500.0,0.00032876,2]
[312111831,1705637441943,-506.55706493,0.00032876,2]
[312111832,1705637441952,-500.0,0.00032876,2]
[312111833,1705637441961,-500.0,0.00032876,2]
[312111834,1705637441972,-500.0,0.00032876,2]
[312111835,1705637441983,-503.84127072,0.00032876,2]
[312111836,1705637441992,-500.0,0.00032876,2]
[312111837,1705637442001,-500.0,0.00032876,2]
[312111838,1705637442010,-500.0,0.00032876,2]
[312111839,1705637442019,-501.68488927,0.00032876,2]
[312111840,1705637442028,-500.0,0.00032876,2]
[312111841,1705637442037,-500.0,0.00032876,2]
[312111842,1705637442046,-501.28799706,0.00032876,2]
[312111843,1705637442056,-755.16,0.00032876,2]
[312111844,1705637442066,-500.0,0.00032876,2]
[312111845,1705637442075,-500.0,0.00032876,2]
[312111846,1705637442084,-500.0,0.00032876,2]
[312111847,1705637442093,-6995.81,0.00032876,2]
[312111848,1705637442103,-799.15,0.00032876,2]
[312111849,1705637442112,-500.0,0.00032876,2]
[312111850,1705637442121,-897.93,0.00032876,2]
[312111851,1705637442130,-206.90170399,0.00032876,2]
[312111852,1705637442139,-1067.46,0.00032876,2]
[312111853,1705637442148,-500.0,0.00032876,2]
[312111854,1705637442158,-140.79040463,0.00032876,2]
[312111855,1705637442170,-365.25469659,0.00032876,2]
[312111856,1705637442179,-775.03,0.00032876,2]
[312111857,1705637442188,-500.0,0.00032876,2]
[312111858,1705637442198,-1891.55,0.00032876,2]
[312111859,1705637442207,-5347.79,0.00032876,2]
[312111860,1705637442216,-1652.54,0.00032876,2]
[312111861,1705637442225,-500.0,0.00032876,2]
[312111862,1705637442234,-500.0,0.00032876,2]
[312111863,1705637442244,-500.0,0.00032876,2]
[312111864,1705637442253,-390.91791186,0.00032876,2]
[312111865,1705637442262,-500.0,0.00032876,2]
[312111866,1705637442272,-500.0,0.00032876,2]
[312111867,1705637442282,-500.0,0.00032876,2]
[312111868,1705637442292,-500.0,0.00032876,2]
[312111869,1705637442301,-500.0,0.00032876,2]
[312111870,1705637442311,-500.0,0.00032876,2]
[312111871,1705637442320,-500.0,0.00032876,2]
[312111872,1705637442329,-150.0,0.00032876,2]
[312111873,1705637442339,-501.5077667,0.00032876,2]
[312111874,1705637442348,-500.0,0.00032876,2]
[312111875,1705637442358,-500.0,0.00032876,2]
[312111876,1705637442367,-2270.22,0.00032876,2]
[312111877,1705637442376,-733.12,0.00032876,2]
[312111878,1705637442387,-500.0,0.00032876,2]
[312111879,1705637442397,-500.0,0.00032876,2]
[312111880,1705637442406,-500.0,0.00032876,2]
[312111881,1705637442416,-2248.07,0.00032876,2]
[312111882,1705637442426,-2652.74,0.00032876,2]
[312111883,1705637442435,-500.0,0.00032876,2]
[312111884,1705637442445,-502.08779407,0.00032876,2]
[312111885,1705637442454,-717.41,0.00032876,2]
[312111886,1705637442463,-500.0,0.00032876,2]
[312111887,1705637442475,-500.0,0.00032876,2]
[312111888,1705637442485,-583.02,0.00032876,2]
[312111889,1705637442494,-1182.86,0.00032876,2]
[312111890,1705637442504,-500.0,0.00032876,2]
[312111891,1705637442513,-504.42963995,0.00032876,2]
[312111892,1705637442522,-500.0,0.00032876,2]
[312111893,1705637442531,-504.72020689,0.00032876,2]
[312111894,1705637442542,-646.44,0.00032876,2]
[312111895,1705637442551,-500.0,0.00032876,2]
[312111896,1705637442561,-160.80795767,0.00032902,7]
[312111897,1705637442570,-386.32476631,0.00033,2]
[312111898,1705637442579,-2000.0,0.00033,14]
[312111899,1705637442588,-500.0,0.00033149,3]
[312111900,1705637442597,-569.15,0.0003315,3]
[312111901,1705637442607,-500.0,0.0003315,3]
[312111902,1705637442616,-500.0,0.0003315,3]
[312111903,1705637442625,-500.0,0.0003315,3]
[312111904,1705637442634,-500.0,0.0003315,3]
[312111905,1705637442643,-500.0,0.0003315,3]
[312111906,1705637442653,-500.0,0.0003315,3]
[312111907,1705637442662,-500.0,0.0003315,3]
[312111908,1705637442672,-500.0,0.0003315,3]
[312111909,1705637442681,-500.0,0.0003315,3]
[312111910,1705637442691,-500.0,0.0003315,3]
[312111911,1705637442700,-500.0,0.0003315,3]
[312111912,1705637442709,-500.0,0.0003315,3]
[312111913,1705637442718,-500.0,0.0003315,3]
[312111914,1705637442728,-500.0,0.0003315,3]
[312111915,1705637442739,-755.16,0.0003315,3]
[312111916,1705637442748,-3308.81695702,0.0003315,3]
[312111950,1705637663156,283.163608,0.00035616,120]
[312111957,1705637839863,1026.7173741,0.00037,120]
[312111959,1705637944976,300.0,0.00035616,120]
[312111975,1705638545181,-1602.24051039,0.00027965,2]
[312111976,1705638545204,-1109.32936034,0.00027966,2]
[312111977,1705638545227,-155.15255085,0.00027966,2]
[312111978,1705638545254,-522.10423591,0.00029587,5]
[312112025,1705638633418,-16.88147932,0.00029587,5]
[312112028,1705638633427,-306.14718025,0.00029587,2]
[312112032,1705638633437,-128.01723148,0.00029587,2]
[312112035,1705638633451,-555.85813395,0.00029587,2]
[312112037,1705638633460,-1275.53211699,0.00029587,2]
[312112039,1705638633469,-161.588,0.00030137,2]
[312112041,1705638633478,-168.667942,0.00030508,2]
[312112042,1705638633487,-323.464726,0.00030837,2]
[312112044,1705638633499,-690.95314883,0.000309,2]
[312112045,1705638633509,-953.5432029,0.0003098,2]
[312112046,1705638633518,-2214.64854543,0.00031489,4]
[312112047,1705638633528,-50000.0,0.0003149,7]
[312112050,1705638633537,-153.0,0.000315,2]
[312112052,1705638633557,-3803.18586927,0.00031866,3]
[312112095,1705638638945,-3837.22483801,0.00029587,2]
[312112096,1705638638955,-1800.46413073,0.00031866,3]
[312112097,1705638638966,-454.25248453,0.00031876,2]
[312112098,1705638638978,-19294.07968597,0.00031876,2]
[312112099,1705638638989,-155.0,0.000319,2]
[312112100,1705638639004,-2824.34304258,0.00031971,4]
[312112101,1705638639014,-267.06974646,0.00032054,4]
[312112102,1705638639024,-154.5351148,0.00032241,2]
[312112103,1705638639034,-153.0,0.000324,2]
[312112104,1705638639044,-198.957615,0.000324,2]
[312112105,1705638639054,-195.95897724,0.00032651,2]
[312112106,1705638639064,-4669.71,0.00032866,3]
[312112107,1705638639073,-455.01919157,0.00032874,4]
[312112108,1705638639083,-155.45721292,0.00032874,4]
[312112109,1705638639092,-3988.92142032,0.00032874,4]
[312112110,1705638639101,-7633.89539322,0.00032875,4]
[312112111,1705638639111,-517.11756215,0.00032875,2]
[312112112,1705638639120,-2165.4,0.00032875,2]
[312112113,1705638639129,-2165.4,0.00032875,2]
[312112114,1705638639138,-2165.4,0.00032875,2]
[312112115,1705638639147,-2165.4,0.00032875,2]
[312112116,1705638639156,-2165.4,0.00032875,2]
[312112117,1705638639166,-2165.4,0.00032875,2]
[312112118,1705638639176,-2165.4,0.00032875,2]
[312112119,1705638639184,-768.44963966,0.00032876,3]
[312112120,1705638639194,-500.90504742,0.00032876,2]
[312112121,1705638639203,-500.0,0.00032876,2]
[312112122,1705638639214,-500.0,0.00032876,2]
[312112123,1705638639224,-500.0,0.00032876,2]
[312112124,1705638639233,-500.0,0.00032876,2]
[312112125,1705638639244,-500.0,0.00032876,2]
[312112126,1705638639255,-500.0,0.00032876,2]
[312112127,1705638639264,-500.0,0.00032876,2]
[312112128,1705638639274,-500.0,0.00032876,2]
[312112129,1705638639283,-500.0,0.00032876,2]
[312112130,1705638639292,-500.0,0.00032876,2]
[312112131,1705638639301,-442.01048546,0.00032876,2]
[312112132,1705638639310,-500.0,0.00032876,2]
[312112133,1705638639319,-506.64965042,0.00032876,2]
[312112134,1705638639328,-500.0,0.00032876,14]
[312112135,1705638639337,-500.0,0.00032876,2]
[312112136,1705638639346,-500.0,0.00032876,2]
[312112137,1705638639359,-503.81106822,0.00032876,2]
[312112138,1705638639368,-500.0,0.00032876,2]
[312112139,1705638639377,-500.0,0.00032876,2]
[312112140,1705638639387,-500.0,0.00032876,2]
[312112141,1705638639397,-356.98673676,0.00032876,2]
[312112142,1705638639408,-500.0,0.00032876,2]
[312112143,1705638639418,-500.0,0.00032876,2]
[312112144,1705638639428,-500.0,0.00032876,2]
[312112145,1705638639437,-501.85237378,0.00032876,2]
[312112146,1705638639448,-500.0,0.00032876,2]
[312112147,1705638639459,-503.21859856,0.00032876,2]
[312112148,1705638639468,-635.96694651,0.00032876,2]
[312112149,1705638639477,-500.0,0.00032876,2]
[312112150,1705638639487,-500.0,0.00032876,2]
[312112151,1705638639500,-500.99789244,0.00032876,2]
[312112152,1705638639510,-500.0,0.00032876,2]
[312112153,1705638639519,-500.0,0.00032876,2]
[312112154,1705638639529,-510.49124954,0.00032876,2]
[312112155,1705638639539,-500.0,0.00032876,2]
[312112156,1705638639548,-500.0,0.00032876,2]
[312112157,1705638639558,-507.36376259,0.00032876,2]
[312112158,1705638639567,-500.0,0.00032876,2]
[312112159,1705638639576,-500.0,0.00032876,2]
[312112160,1705638639585,-500.0,0.00032876,2]
[312112161,1705638639594,-500.0,0.00032876,2]
[312112162,1705638639603,-500.0,0.00032876,2]
[312112163,1705638639612,-500.0,0.00032876,2]
[312112164,1705638639622,-500.0,0.00032876,2]
[312112165,1705638639631,-492.00719133,0.00032876,2]
[312112166,1705638639640,-500.0,0.00032876,2]
[312112167,1705638639650,-500.0,0.00032876,2]
[312112168,1705638639659,-396.41630454,0.00032876,2]
[312112169,1705638639669,-500.0,0.00032876,2]
[312112170,1705638639678,-500.0,0.00032876,2]
[312112171,1705638639688,-510.23718748,0.00032876,2]
[312112172,1705638639697,-499.25770796,0.00032876,2]
[312112173,1705638639706,-500.0,0.00032876,2]
[312112174,1705638639715,-500.0,0.00032876,2]
[312112175,1705638639725,-500.0,0.00032876,2]
[312112176,1705638639734,-500.0,0.00032876,2]
[312112177,1705638639745,-500.0,0.00032876,2]
[312112178,1705638639754,-500.0,0.00032876,2]
[312112179,1705638639764,-506.35665942,0.00032876,2]
[312112180,1705638639773,-503.20623737,0.00032876,2]
[312112181,1705638639782,-500.0,0.00032876,2]
[312112182,1705638639791,-500.0,0.00032876,2]
[312112183,1705638639800,-500.0,0.00032876,2]
[312112184,1705638639810,-500.0,0.00032876,2]
[312112185,1705638639819,-500.0,0.00032876,2]
[312112186,1705638639828,-500.0,0.00032876,2]
[312112187,1705638639838,-500.0,0.00032876,2]
[312112188,1705638639847,-500.0,0.00032876,2]
[312112189,1705638639857,-1185.01,0.00032876,2]
[312112190,1705638639866,-500.0,0.00032876,2]
[312112191,1705638639875,-635.34,0.00032876,2]
[312112192,1705638639884,-500.0,0.00032876,2]
[312112193,1705638639894,-500.0,0.00032876,2]
[312112194,1705638639903,-500.0,0.00032876,5]
[312112195,1705638639912,-566.65,0.00032876,2]
[312112196,1705638639921,-509.14299081,0.00032876,2]
[312112197,1705638639931,-500.0,0.00032876,2]
[312112198,1705638639940,-500.0,0.00032876,2]
[312112199,1705638639949,-500.0,0.00032876,2]
[312112200,1705638639959,-500.0,0.00032876,2]
[312112201,1705638639970,-726.56,0.00032876,2]
[312112202,1705638639981,-506.24983584,0.00032876,2]
[312112203,1705638639990,-500.0,0.00032876,2]
[312112204,1705638640001,-500.0,0.00032876,2]
[312112205,1705638640011,-500.0,0.00032876,2]
[312112206,1705638640021,-500.0,0.00032876,2]
[312112207,1705638640030,-627.14356209,0.00032876,2]
[312112208,1705638640040,-508.39221343,0.00032876,2]
[312112209,1705638640050,-500.0,0.00032876,2]
[312112210,1705638640059,-500.0,0.00032876,2]
[312112211,1705638640069,-935.5,0.00032876,2]
[312112212,1705638640078,-7218.08,0.00032876,2]
[312112213,1705638640088,-875.36,0.00032876,2]
[312112214,1705638640098,-615.20791133,0.00032876,2]
[312112215,1705638640107,-500.0,0.00032876,2]
[312112216,1705638640118,-500.0,0.00032876,2]
[312112217,1705638640127,-500.0,0.00032876,2]
[312112219,1705638640136,-500.0,0.00032876,2]
[312112220,1705638640145,-1022.98,0.00032876,2]
[312112223,1705638640155,-1969.22,0.00032876,2]
[312112224,1705638640164,-500.0,0.00032876,2]
[312112225,1705638640173,-502.02012572,0.00032876,2]
[312112226,1705638640182,-500.99613015,0.00032876,2]
[312112227,1705638640191,-506.81300677,0.00032876,2]
[312112228,1705638640200,-500.0,0.00032876,2]
[312112229,1705638640211,-500.0,0.00032876,2]
[312112230,1705638640220,-500.0,0.00032876,2]
[312112231,1705638640229,-813.52,0.00032876,2]
[312112232,1705638640238,-505.83850922,0.00032876,2]
[312112233,1705638640250,-5304.37,0.00032876,2]
[312112234,1705638640259,-766.27,0.00032876,2]
[312112235,1705638640268,-506.76501181,0.00032876,2]
[312112236,1705638640277,-504.89253781,0.00032876,2]
[312112237,1705638640286,-1707.35,0.00032876,2]
[312112238,1705638640295,-500.64880738,0.00032876,2]
[312112239,1705638640304,-500.0,0.00032876,2]
[312112240,1705638640313,-2657.55,0.00032876,2]
[312112241,1705638640322,-169.85993175,0.00032876,2]
[312112242,1705638640331,-501.73513035,0.00032876,2]
[312112243,1705638640340,-500.0,0.00032876,2]
[312112244,1705638640349,-500.0,0.00032876,2]
[312112245,1705638640359,-500.0,0.00032876,2]
[312112246,1705638640369,-500.0,0.00032876,2]
[312112247,1705638640379,-271.81304611,0.00032876,2]
[312112248,1705638640388,-500.0,0.00032876,2]
[312112249,1705638640398,-500.0,0.00032876,2]
[312112250,1705638640407,-500.0,0.00032876,2]
[312112251,1705638640417,-500.0,0.00032876,2]
[312112252,1705638640426,-500.0,0.00032876,2]
[312112253,1705638640434,-500.0,0.00032876,2]
[312112254,1705638640445,-500.0,0.00032876,2]
[312112255,1705638640454,-500.0,0.00032876,2]
[312112256,1705638640463,-500.0,0.00032876,2]
[312112257,1705638640473,-500.0,0.00032876,2]
[312112258,1705638640482,-500.0,0.00032876,2]
[312112259,1705638640494,-500.0,0.00032876,2]
[312112260,1705638640584,-2175.63,0.00032876,2]
[312112261,1705638640594,-500.0,0.00032876,2]
[312112262,1705638640605,-500.0,0.00032876,2]
[312112263,1705638640614,-500.0,0.00032876,2]
[312112264,1705638640624,-2230.41,0.00032876,2]
[312112265,1705638640633,-500.0,0.00032876,2]
[312112266,1705638640642,-500.0,0.00032876,2]
[312112267,1705638640651,-500.0,0.00032876,2]
[312112268,1705638640660,-502.27871451,0.00032876,2]
[312112269,1705638640670,-500.0,0.00032876,2]
[312112270,1705638640679,-500.41281024,0.00032876,2]
[312112271,1705638640688,-687.52,0.00032876,2]
[312112272,1705638640697,-504.20658948,0.00032876,2]
[312112273,1705638640707,-500.0,0.00032876,2]
[312112275,1705638640715,-500.0,0.00032876,2]
[312112277,1705638640725,-500.0,0.00032876,2]
[312112278,1705638640734,-500.34598322,0.00032876,2]
[312112280,1705638640745,-502.46942501,0.00032876,2]
[312112282,1705638640754,-500.0,0.00032876,2]
[312112284,1705638640764,-500.0,0.00032876,2]
[312112285,1705638640773,-610.51,0.00032876,2]
[312112286,1705638640783,-500.0,0.00032876,2]
[312112287,1705638640793,-500.0,0.00032876,2]
[312112288,1705638640802,-400.0,0.00032877,2]
[312112290,1705638640811,-500.0,0.00032899,2]
[312112293,1705638640820,-500.0,0.00032899,2]
[312112295,1705638640829,-500.0,0.00032899,2]
[312112298,1705638640838,-500.0,0.00032899,2]
[312112300,1705638640847,-500.0,0.00032899,2]
[312112303,1705638640856,-500.0,0.00032899,2]
[312112305,1705638640864,-500.0,0.00032899,2]
[312112308,1705638640874,-500.0,0.00032899,2]
[312112311,1705638640883,-500.0,0.00032899,2]
[312112313,1705638640892,-500.0,0.00032899,2]
[312112315,1705638640902,-165.10890484,0.00032899,2]
[312112317,1705638640911,-280.13339056,0.00032899,2]
[312112319,1705638640920,-500.0,0.00032899,2]
[312112322,1705638640930,-500.0,0.00032899,2]
[312112324,1705638640939,-293.52592734,0.00032899,2]
[312112326,1705638640948,-500.0,0.00032899,2]
[312112328,1705638640957,-500.0,0.00032899,2]
[312112329,1705638640966,-214.13578628,0.00032899,2]
[312112331,1705638640975,-164.20816128,0.00032899,2]
[312112333,1705638640984,-304.41589688,0.00032899,2]
[312112336,1705638640994,-500.0,0.00032899,2]
[312112337,1705638641004,-500.0,0.00032899,2]
[312112339,1705638641013,-500.0,0.00032899,2]
[312112341,1705638641022,-500.0,0.00032899,2]
[312112343,1705638641031,-500.0,0.00032899,2]
[312112345,1705638641040,-455.04874744,0.00032899,2]
[312112347,1705638641050,-500.0,0.00032899,2]
[312112350,1705638641059,-500.0,0.00032899,2]
[312112351,1705638641068,-500.0,0.00032899,2]
[312112353,1705638641079,-500.0,0.00032899,2]
[312112356,1705638641089,-500.0,0.00032899,2]
[312112358,1705638641098,-500.0,0.00032899,2]
[312112360,1705638641107,-500.0,0.00032899,2]
[312112362,1705638641117,-500.0,0.00032899,2]
[312112364,1705638641128,-500.0,0.00032899,2]
[312112366,1705638641137,-500.0,0.00032899,2]
[312112368,1705638641146,-500.0,0.00032899,2]
[312112370,1705638641155,-500.0,0.00032899,2]
[312112372,1705638641165,-500.0,0.00032899,2]
[312112374,1705638641174,-500.0,0.00032899,2]
[312112376,1705638641183,-500.0,0.00032899,2]
[312112378,1705638641193,-500.0,0.00032899,2]
[312112380,1705638641202,-500.0,0.00032899,2]
[312112382,1705638641211,-500.0,0.00032899,2]
[312112384,1705638641220,-500.0,0.00032899,2]
[312112386,1705638641229,-500.0,0.00032899,2]
[312112388,1705638641238,-262074.98470389,0.000329,2]
[312112389,1705638641247,-177.04953276,0.000329,2]
[312112391,1705638641256,-306.63663,0.00032999,2]
[312112394,1705638641266,-6762.26543772,0.00033,4]